fUST/lending_fUST_20251118
["ID","MTS","AMOUNT","RATE_DAILY","PERIOD"]
[394343919,1763477440420,-150.0,0.00040108,2]
[394343921,1763477440430,-161.999466,0.00040117,2]
[394343923,1763477440439,-457.12605277,0.00040183,30]
[394343925,1763477440448,-151.91205681,0.00040183,30]
[394343927,1763477440457,-500.0,0.00040339,5]
[394343929,1763477440466,-558.05320496,0.00040339,5]
[394343931,1763477440475,-500.0,0.00040339,5]
[394343933,1763477440484,-500.0,0.00040339,5]
[394343934,1763477440493,-151.0,0.000404,17]
[394343937,1763477440502,-500.0,0.00040452,5]
[394343938,1763477440511,-7657.64509286,0.0004049,3]
[394343940,1763477440520,-10252.0,0.000405,120]
[394343942,1763477440529,-500.0,0.00040663,5]
[394343944,1763477440539,-500.0,0.00040663,5]
[394343946,1763477440548,-503.99747515,0.00040887,5]
[394343948,1763477440558,-505.05752295,0.00040887,5]
[394343950,1763477440567,-506.86425752,0.00040887,5]
[394343952,1763477440576,-500.0,0.00041,5]
[394343954,1763477440585,-635.62671406,0.00041211,10]
[394343956,1763477440594,-500.0,0.00041273,10]
[394343958,1763477440604,-501.45708738,0.00041273,10]
[394343960,1763477440615,-500.0,0.00041279,2]
[394343962,1763477440624,-7657.64509286,0.0004128,3]
[394343964,1763477440634,-500.0,0.00041289,2]
[394343966,1763477440643,-500.0,0.00041289,2]
[394343968,1763477440652,-500.0,0.00041289,2]
[394343970,1763477440662,-500.0,0.00041289,2]
[394343972,1763477440671,-500.0,0.00041289,2]
[394343974,1763477440681,-500.0,0.0004129,120]
[394343976,1763477440690,-99549.3862072,0.0004129,3]
[394343978,1763477440703,-200.0,0.00041299,30]
[394343980,1763477440713,-500.0,0.00041299,2]
[394343982,1763477440722,-500.0,0.00041299,2]
[394343984,1763477440732,-500.0,0.00041299,2]
[394343986,1763477440742,-500.0,0.00041299,2]
[394343988,1763477440751,-500.0,0.00041299,2]
[394343990,1763477440760,-500.0,0.00041299,2]
[394343992,1763477440769,-500.0,0.00041299,2]
[394343994,1763477440778,-500.0,0.00041299,2]
[394343996,1763477440789,-500.0,0.00041299,2]
[394343998,1763477440798,-500.0,0.00041299,2]
[394344000,1763477440807,-500.0,0.00041299,2]
[394344002,1763477440816,-500.0,0.00041299,2]
[394344004,1763477440826,-500.0,0.00041299,2]
[394344006,1763477440835,-572360.82794266,0.000413,2]
[394344073,1763477441485,-3e-08,0.00025154,7]
[394344654,1763477447006,-150.99999997,0.00025154,7]
[394344656,1763477447015,-151.0,0.00025154,7]
[394344657,1763477447024,-395.71665081,0.000282,7]
[394344669,1763477447128,-7889.39334919,0.000282,7]
[394344671,1763477447137,-193.613478,0.000333,31]
[394344673,1763477447147,-8285.11,0.000353,14]
[394344675,1763477447156,-150.0,0.00038351,2]
[394344678,1763477447165,-8285.11,0.000395,14]
[394344679,1763477447174,-1761.24002199,0.00039557,20]
[394344682,1763477447184,-530.13,0.0004129,10]
[394344683,1763477447193,-317639.17205734,0.000413,2]
[394344685,1763477447202,-190.51,0.000413,14]
[394344687,1763477447211,-158.628013,0.000413,3]
[394344689,1763477447220,-151.0,0.000413,120]
[394344691,1763477447229,-519.15,0.00041564,120]
[394344693,1763477447238,-1000.0,0.00041821,10]
[394344695,1763477447246,-150.0,0.00041931,2]
[394344697,1763477447255,-2932.74853605,0.00042145,28]
[394344699,1763477447265,-3360.1543111,0.00042182,2]
[394344701,1763477447274,-500.0,0.00042368,10]
[394344703,1763477447283,-618.63,0.000427,14]
[394344705,1763477447292,-261.92967291,0.00043736,2]
[394344706,1763477447300,-471.47341124,0.00043736,2]
[394344708,1763477447310,-334.52620392,0.00043736,2]
[394344710,1763477447319,-608.07698102,0.00043736,2]
[394344712,1763477447328,-503.97710769,0.00043736,2]
[394344714,1763477447338,-907.15879385,0.00043736,2]
[394344717,1763477447347,-252.75632681,0.00043736,2]
[394344719,1763477447356,-454.96138825,0.00043736,2]
[394344721,1763477447366,-166.05138662,0.00043736,2]
[394344723,1763477447376,-664.20554646,0.00043736,2]
[394344724,1763477447386,-1494.46247955,0.00043736,2]
[394344727,1763477447396,-1000.0,0.00043812,90]
[394344729,1763477447405,-216.46399394,0.00044109,30]
[394344731,1763477447415,-1998.28884961,0.00045,120]
[394344733,1763477447424,-838.17495332,0.00045186,2]
[394344735,1763477447434,-1612.72674462,0.00045186,2]
[394344737,1763477447443,-8285.11,0.000452,14]
[394344739,1763477447453,-808.82024578,0.00045514,2]
[394344741,1763477447462,-382.31566162,0.00045753,2]
[394344743,1763477447471,-1094.53856584,0.0004592,2]
[394344745,1763477447480,-293.85068442,0.00046315,60]
[394344747,1763477447489,-168.0,0.00046347,2]
[394344748,1763477447498,-158.628013,0.00046392,20]
[394344750,1763477447507,-150.0,0.00046573,2]
[394344752,1763477447515,-150.0,0.00046573,2]
[394344754,1763477447525,-413.0,0.00046573,2]
[394344756,1763477447534,-500.0,0.00046798,60]
[394344758,1763477447543,-2656.82218586,0.00047075,2]
[394344760,1763477447553,-1000.0,0.0004709,14]
[394344762,1763477447561,-168.0,0.0004711,2]
[394344764,1763477447571,-500.0,0.00047112,10]
[394344766,1763477447581,-500.0,0.00047112,4]
[394344768,1763477447590,-500.0,0.00047112,10]
[394344770,1763477447599,-500.0,0.00047112,10]
[394344772,1763477447608,-503.1055677,0.00047112,10]
[394344774,1763477447620,-500.0,0.00047112,10]
[394344776,1763477447630,-500.0,0.00047112,10]
[394344778,1763477447639,-150.0,0.00047112,10]
[394344780,1763477447649,-573.52768817,0.0004743,60]
[394344781,1763477447658,-190.51,0.000476,14]
[394344784,1763477447668,-1013.02584555,0.00047659,10]
[394344785,1763477447677,-502.35754439,0.00047659,10]
[394344788,1763477447687,-1000.0,0.00047659,4]
[394344790,1763477447696,-1000.0,0.00047659,10]
[394344791,1763477447707,-501.81336112,0.00047659,10]
[394344793,1763477447718,-448.9906155,0.00047659,10]
[394344796,1763477447727,-500.0,0.00047773,10]
[394344797,1763477447737,-500.0,0.00047773,7]
[394344800,1763477447747,-500.0,0.00047773,10]
[394344801,1763477447756,-500.94071383,0.00047773,10]
[394344803,1763477447766,-217.91221958,0.00047773,10]
[394344804,1763477447776,-150.0,0.00047773,10]
[394344805,1763477447787,-200.0,0.00047777,30]
[394344806,1763477447797,-64757.91577261,0.00047778,120]
[394345649,1763477691885,288.76243164,0.00015776,2]
[394345651,1763477989771,175.315852,0.00039618,20]
[394345652,1763478010807,-557.81758811,0.00023174,2]
[394345654,1763478481522,176.53,0.00015105,2]
[394345655,1763478481848,176.53,0.00015105,2]
[394345656,1763478482172,176.52,0.00015105,2]
[394345657,1763478510465,300.0,0.00039681,120]
[394345659,1763478556714,6014.29540389,0.00039681,20]
[394345683,1763478631981,-5000.0,0.00021818,10]
[394345684,1763478631990,-150.0,0.00021928,2]
[394345685,1763478632000,-300.0,0.00022037,2]
[394345686,1763478632010,-1049.5390076,0.00022038,10]
[394345687,1763478632022,-723.61474128,0.00022038,10]
[394345688,1763478632033,-3226.84625112,0.00022038,10]
[394345689,1763478632043,-800.0,0.000228,2]
[394345690,1763478632053,-288.76243164,0.00023644,2]
[394345691,1763478632066,-177.0,0.00023928,2]
[394345692,1763478632075,-420.0,0.00023946,2]
[394345693,1763478632084,-11483.2955796,0.00024258,2]
[394345694,1763478632094,-2103.31956809,0.0002488,2]
[394345695,1763478632104,-441.77,0.00024969,10]
[394345696,1763478632112,-34927.355599,0.0002497,2]
[394345697,1763478632121,-500.0,0.00024979,2]
[394345698,1763478632130,-171.7090983,0.00024989,2]
[394345699,1763478632141,-334.34466111,0.00024989,2]
[394345700,1763478632151,-500.0,0.00024989,2]
[394345701,1763478632160,-210.40244825,0.00024989,2]
[394345702,1763478632170,-500.0,0.00024989,2]
[394345703,1763478632179,-100000.0,0.0002499,2]
[394345704,1763478632188,-150.0,0.00025,90]
[394345705,1763478632198,-200.0,0.00025048,2]
[394345706,1763478632207,-106098.95620994,0.00025049,2]
[394346412,1763478646200,-411.71506209,0.00024951,2]
[394346413,1763478646211,-889.82014157,0.00024969,2]
[394346414,1763478646222,-193.73226549,0.00024969,2]
[394346415,1763478646238,-889.82014157,0.00024969,2]
[394346416,1763478646249,-889.82014157,0.00024969,2]
[394346417,1763478646260,-399.31200091,0.00024969,2]
[394346418,1763478646470,-490.50814066,0.00024969,2]
[394346419,1763478646487,-889.82014157,0.00024969,2]
[394346420,1763478646500,-889.82014157,0.00024969,2]
[394346421,1763478646511,-889.82014157,0.00024969,2]
[394346422,1763478646523,-889.82014157,0.00024969,2]
[394346423,1763478646535,-889.82014157,0.00024969,2]
[394346424,1763478646546,-889.82014157,0.00024969,2]
[394346425,1763478646558,-889.82014157,0.00024969,2]
[394346426,1763478646568,-889.82014157,0.00024969,2]
[394346427,1763478646579,-889.82014157,0.00024969,2]
[394346428,1763478646590,-889.82014157,0.00024969,2]
[394346429,1763478646602,-889.82014157,0.00024969,2]
[394346430,1763478646614,-889.82014157,0.00024969,2]
[394346431,1763478646625,-368.14,0.00024969,10]
[394346432,1763478646635,-125234.01016047,0.00025049,2]
[394348580,1763479191884,943.441399,0.0003183,120]
[394348581,1763479196087,288.95487578,0.00015776,2]
[394348595,1763479507178,1281.0,0.000175,2]
[394348596,1763479515861,1507.99989906,0.00039681,20]
[394348600,1763479640320,908.20683128,0.00039681,30]
[394348604,1763479692126,1534.22961485,0.000125,2]
[394348605,1763479712948,8465.78038515,0.00015,2]
[394348606,1763479712974,10000.01,0.00015,2]
[394348607,1763479712999,1463.37057425,0.00015,2]
[394348609,1763479715240,1000.0,0.0001,2]
[394348652,1763479832161,-1864.47636112,0.00022637,2]
[394348653,1763479832172,-875.89904586,0.00022637,2]
[394348673,1763479837979,-2259.62459302,0.00022637,2]
[394348675,1763479837989,-526.08405943,0.00022866,2]
[394348684,1763479838074,-625.58105007,0.00022866,2]
[394348835,1763479840120,-3848.3348905,0.00022866,2]
[394348836,1763479840129,-150.0,0.00023097,2]
[394348837,1763479840139,-162.08989597,0.00023147,2]
[394348838,1763479840148,-167.28791365,0.00023147,2]
[394348839,1763479840157,-322.8926552,0.00023517,2]
[394348840,1763479840167,-168.365,0.00024371,6]
[394348841,1763479840176,-306.79,0.00024855,10]
[394348842,1763479840186,-600.0,0.00024857,2]
[394348843,1763479840195,-255.66,0.00024858,10]
[394348845,1763479840204,-300.0,0.00024864,2]
[394348847,1763479840213,-1200.0,0.00024864,2]
[394348849,1763479840223,-500.0,0.00024866,2]
[394348850,1763479840232,-200.0,0.00024867,2]
[394348851,1763479840241,-215.69190527,0.00024867,2]
[394348852,1763479840255,-308.83754149,0.00024867,2]
[394348853,1763479840265,-500.0,0.00024867,2]
[394348854,1763479840275,-347.28171378,0.00024867,2]
[394348855,1763479840284,-3832.44791331,0.00024868,2]
[394348856,1763479840296,-5618.83711693,0.00024868,2]
[394348857,1763479840307,-30592.90438003,0.00024868,2]
[394348858,1763479840328,-671.77936835,0.00024868,2]
[394348876,1763479843791,-454.06,0.00024858,3]
[394348877,1763479843802,-1262.32435174,0.00024868,2]
[394348878,1763479843820,-29905.33488565,0.00024868,2]
[394348882,1763479844065,-6599.31263174,0.00024868,2]
[394348884,1763479844081,-3040.92075901,0.00024868,2]
[394348912,1763479846289,-1253.74,0.00024858,10]
[394348913,1763479846299,-2546.07041993,0.00024868,2]
[394348914,1763479846313,-1685.28112363,0.00024868,2]
[394348915,1763479846434,-9301.98078213,0.00024868,2]
[394348916,1763479846454,-462017.77891751,0.00024868,2]
[394348917,1763479846553,-814.31666867,0.00024868,2]
[394348918,1763479846567,-1449.64568231,0.00024868,2]
[394349473,1763480108518,220.0,0.00025753,120]
[394349476,1763480110084,220.0,0.0002704,120]
[394349479,1763480111696,220.0,0.00028392,120]
[394349482,1763480113024,220.0,0.00029812,120]
[394349484,1763480114324,220.0,0.00031303,120]
[394349485,1763480116033,220.0,0.00032868,120]
[394349494,1763480125440,10000.0,0.00032877,120]
[394349662,1763480197782,-1699.0,0.00022266,10]
[394349666,1763480199557,-62.24002199,0.00022266,10]
[394349667,1763480199588,-353.01172191,0.00022279,4]
[394349668,1763480199618,-150.0,0.00022379,2]
[394349669,1763480199648,-3869.5065122,0.00022491,10]
[394349671,1763480199777,-1130.4934878,0.00022491,10]
[394349672,1763480199810,-1200.0,0.00022716,2]
[394349673,1763480199842,-300.0,0.00022717,2]
[394349674,1763480199875,-300.0,0.00022717,2]
[394349675,1763480199906,-300.0,0.00022717,2]
[394349676,1763480200018,-5000.0,0.00022718,10]
[394349677,1763480200199,-206.54782466,0.00022947,2]
[394349678,1763480200233,-300.0,0.00023171,20]
[394349679,1763480200267,-300.0,0.00023171,20]
[394349681,1763480200303,-300.0,0.00023171,20]
[394349682,1763480200336,-300.0,0.00023171,20]
[394349683,1763480200369,-300.0,0.00023171,20]
[394349684,1763480200401,-300.0,0.00023171,20]
[394349685,1763480200432,-300.0,0.00023171,20]
[394349687,1763480200464,-300.0,0.00023171,20]
[394349688,1763480200495,-300.0,0.00023171,20]
[394349689,1763480200526,-300.0,0.00023171,20]
[394349690,1763480200563,-300.0,0.00023171,20]
[394349691,1763480200596,-300.0,0.00023171,20]
[394349692,1763480200626,-300.0,0.00023171,20]
[394349693,1763480200655,-300.0,0.00023171,20]
[394349694,1763480200686,-300.0,0.00023171,20]
[394349695,1763480200809,-175.94440932,0.00023816,2]
[394349696,1763480200847,-64.78467304,0.00023916,2]
[394349697,1763480200903,-105.45618596,0.00023916,2]
[394349698,1763480200932,-193.85341116,0.00024273,2]
[394349699,1763480200964,-177.0,0.00024379,2]
[394349700,1763480200993,-193.85341116,0.00024518,2]
[394349701,1763480201022,-1200.0,0.00024618,2]
[394349702,1763480201055,-734.19,0.00024753,10]
[394349703,1763480201086,-1269.69,0.00024753,10]
[394349704,1763480201115,-280.35068464,0.00024757,2]
[394349705,1763480201145,-321.59353121,0.00024762,2]
[394349706,1763480201175,-500.0,0.00024762,2]
[394349707,1763480201296,-282.52703835,0.00024762,2]
[394349708,1763480201325,-500.0,0.00024762,2]
[394349709,1763480201355,-500.0,0.00024762,2]
[394349710,1763480201383,-500.0,0.00024762,2]
[394349711,1763480201410,-500.0,0.00024762,2]
[394349712,1763480201438,-500.0,0.00024762,2]
[394349713,1763480201472,-1263.50274017,0.00024762,2]
[394349714,1763480201503,-374.08989249,0.00024762,2]
[394349715,1763480201532,-500.0,0.00024762,2]
[394349716,1763480201640,-500.0,0.00024762,2]
[394349717,1763480201668,-411.50664171,0.00024762,2]
[394349718,1763480201697,-289.89423229,0.00024762,2]
[394349719,1763480201726,-500.0,0.00024762,2]
[394349720,1763480201760,-1263.50274017,0.00024762,2]
[394349721,1763480201792,-500.0,0.00024762,2]
[394349722,1763480201823,-500.0,0.00024762,2]
[394349724,1763480201855,-500.0,0.00024762,2]
[394349725,1763480202104,-1263.50274017,0.00024762,2]
[394349726,1763480202136,-500.0,0.00024762,2]
[394349727,1763480202168,-324.70616749,0.00024762,2]
[394349728,1763480202204,-1263.50274017,0.00024762,2]
[394349729,1763480202235,-500.0,0.00024762,2]
[394349730,1763480202265,-500.0,0.00024762,2]
[394349731,1763480202304,-33.08396417,0.00024762,2]
[394349734,1763480203832,-1230.418776,0.00024762,2]
[394349735,1763480203870,-500.0,0.00024762,2]
[394349737,1763480203910,-1263.50274017,0.00024762,2]
[394349738,1763480203950,-291.02819481,0.00024762,2]
[394349739,1763480203993,-1263.50274017,0.00024762,2]
[394349740,1763480204049,-1263.50274017,0.00024762,2]
[394349741,1763480204090,-500.0,0.00024762,2]
[394349742,1763480204133,-500.0,0.00024762,2]
[394349743,1763480204178,-1263.50274017,0.00024762,2]
[394349744,1763480204221,-1263.50274017,0.00024762,2]
[394349745,1763480204272,-1263.50274017,0.00024762,2]
[394349746,1763480204317,-1263.50274017,0.00024762,2]
[394349747,1763480204357,-1263.50274017,0.00024762,2]
[394349748,1763480204397,-1155.49081881,0.00024762,2]
[394349749,1763480205354,-108.01192136,0.00024762,2]
[394349750,1763480205393,-1263.50274017,0.00024762,2]
[394349751,1763480205428,-1263.50274017,0.00024762,2]
[394349752,1763480205462,-1263.50274017,0.00024762,2]
[394349753,1763480205496,-939.46697609,0.00024762,2]
[394349756,1763480215715,-1058.08,0.00024753,10]
[394349757,1763480215755,-324.03576408,0.00024762,2]
[394349758,1763480215790,-1263.50274017,0.00024762,2]
[394349759,1763480215827,-1263.50274017,0.00024762,2]
[394349760,1763480215864,-918.26477099,0.00024762,2]
[394349761,1763480215952,-345.23796918,0.00024762,2]
[394349762,1763480215986,-1263.50274017,0.00024762,2]
[394349763,1763480216021,-1263.50274017,0.00024762,2]
[394349764,1763480216056,-1263.50274017,0.00024762,2]
[394349765,1763480216092,-465.01488045,0.00024762,2]
[394349766,1763480216176,-798.48785972,0.00024762,2]
[394349767,1763480216212,-1263.50274017,0.00024762,2]
[394349768,1763480216249,-1263.50274017,0.00024762,2]
[394349769,1763480216285,-1263.50274017,0.00024762,2]
[394349770,1763480216403,-1263.50274017,0.00024762,2]
[394349771,1763480216440,-1263.50274017,0.00024762,2]
[394349772,1763480216475,-1263.50274017,0.00024762,2]
[394349773,1763480216510,-1155.49081881,0.00024762,2]
[394349774,1763480216611,-108.01192136,0.00024762,2]
[394349775,1763480216650,-1263.50274017,0.00024762,2]
[394349776,1763480216686,-1263.50274017,0.00024762,2]
[394349777,1763480216723,-1263.50274017,0.00024762,2]
[394349778,1763480216761,-939.46697609,0.00024762,2]
[394349779,1763480217026,-324.03576408,0.00024762,2]
[394349780,1763480217035,-769.94051255,0.00024762,2]
[394349781,1763480217050,-493.56222762,0.00024762,2]
[394349782,1763480217062,-769.94051255,0.00024762,2]
[394349903,1763480284559,164.71,0.00015105,2]
[394349904,1763480284836,164.71,0.00015105,2]
[394349905,1763480285192,164.71,0.00015105,2]
[394349973,1763480394754,269.82765595,0.00015776,2]
[394349980,1763480409308,177.0,0.00025393,120]
[394349981,1763480410753,177.0,0.00026663,120]
[394349982,1763480412078,177.0,0.00027996,120]
[394349983,1763480413410,177.0,0.00029396,120]
[394349984,1763480414710,177.0,0.00030866,120]
[394350060,1763480586113,163.341583,0.00013699,2]
[394350085,1763480610304,-184.130986,0.00021482,10]
[394350086,1763480612914,-389.74954484,0.00021482,10]
[394350087,1763480614575,-170.54440839,0.00021482,10]
[394350088,1763480616051,-306.02482211,0.00021482,10]
[394350089,1763480618693,-161.45121328,0.00021482,10]
[394350090,1763480620131,-247.09279327,0.00021482,10]
[394350091,1763480622198,-262.06839354,0.00021482,10]
[394350092,1763480623729,-274.44696721,0.00021482,10]
[394350094,1763480626883,-469.56801186,0.00021482,10]
[394350115,1763480630293,-189.39120443,0.00021482,10]
[394350138,1763480633409,-259.2295785,0.00021482,10]
[394350165,1763480636665,-333.36939357,0.00021267,10]
[394350185,1763480639555,-215.92871607,0.00021267,10]
[394350201,1763480642315,-154.15334276,0.00021267,10]
[394350205,1763480643779,-251.72901037,0.00021267,10]
[394350210,1763480645670,-168.0341074,0.00021267,10]
[394350215,1763480647270,-197.39548942,0.00021267,10]
[394350221,1763480648833,-598.07037494,0.00021267,10]
[394350222,1763480650396,-354.12447182,0.00021267,10]
[394350223,1763480652660,-430.62106789,0.00021267,10]
[394350224,1763480656050,-271.97300814,0.00021267,10]
[394350225,1763480658124,-215.04014986,0.00021267,10]
[394350226,1763480660777,-168.69568844,0.00021267,10]
[394350227,1763480662211,-230.83675562,0.00021267,10]
[394350228,1763480664898,-291.36681348,0.00021267,10]
[394350229,1763480666550,-186.06169872,0.00021267,10]
[394350230,1763480668689,-296.9038281,0.00021267,10]
[394350231,1763480671204,-160.43527447,0.00021267,10]
[394350232,1763480674094,-210.55590752,0.00021267,10]
[394350233,1763480710351,-264.70490141,0.00021267,10]
[394350234,1763480710386,-2086.30207657,0.00021482,10]
[394350235,1763480710418,-297.99604404,0.00021699,10]
[394350236,1763480710548,-3774.70471701,0.00021699,10]
[394350237,1763480710592,-927.29923895,0.00021699,10]
[394350238,1763480710624,-163.341583,0.00021918,2]
[394350239,1763480710653,-200.0,0.00022,3]
[394350240,1763480710690,-300.0,0.00023428,2]
[394350241,1763480710725,-202.74512972,0.00023429,2]
[394350242,1763480710758,-500.0,0.00023429,2]
[394350243,1763480710790,-587.89202165,0.00023429,2]
[394350244,1763480710821,-500.0,0.00023429,2]
[394350245,1763480710853,-427.17022524,0.00023429,2]
[394350246,1763480710884,-500.0,0.00023429,2]
[394350247,1763480710915,-500.0,0.00023429,2]
[394350248,1763480711070,-500.0,0.00023429,2]
[394350249,1763480711103,-500.0,0.00023429,2]
[394350250,1763480711135,-500.0,0.00023429,2]
[394350251,1763480711169,-500.0,0.00023429,2]
[394350252,1763480711203,-500.0,0.00023429,2]
[394350253,1763480711236,-500.0,0.00023429,2]
[394350254,1763480711275,-1061.45890816,0.00023429,2]
[394350255,1763480711307,-650.0,0.00023429,2]
[394350256,1763480711459,-1061.45890816,0.00023429,2]
[394350257,1763480711494,-1061.45890816,0.00023429,2]
[394350258,1763480711530,-1061.45890816,0.00023429,2]
[394350259,1763480711564,-1061.45890816,0.00023429,2]
[394350260,1763480711599,-446.87982656,0.00023429,2]
[394350261,1763480712062,-513.32596,0.00023429,2]
[394350262,1763480712081,-101.2531216,0.00023429,2]
[394350263,1763480712090,-960.20578656,0.00023429,2]
[394350264,1763480712131,-101.2531216,0.00023429,2]
[394350265,1763480712168,-1061.45890816,0.00023429,2]
[394350266,1763480712204,-1061.45890816,0.00023429,2]
[394350267,1763480712240,-1061.45890816,0.00023429,2]
[394350268,1763480712278,-1061.45890816,0.00023429,2]
[394350269,1763480712315,-244.37358336,0.00023429,2]
[394350270,1763480712430,-817.0853248,0.00023429,2]
[394350271,1763480713962,-1200.0,0.00023427,2]
[394350272,1763480713999,-1052.05357606,0.00023429,2]
[394350273,1763480714041,-1052.05357606,0.00023429,2]
[394350274,1763480714079,-1052.05357606,0.00023429,2]
[394350275,1763480714115,-235.63496758,0.00023429,2]
[394350276,1763480714237,-816.41860848,0.00023429,2]
[394350277,1763480724322,-5000.0,0.00023194,10]
[394350278,1763480724362,-0.01,0.00023429,2]
[394350279,1763480724502,-1052.04357606,0.00023429,2]
[394350280,1763480724539,-1052.05357606,0.00023429,2]
[394350281,1763480724575,-1052.05357606,0.00023429,2]
[394350282,1763480724610,-1052.05357606,0.00023429,2]
[394350283,1763480724645,-531.54781546,0.00023429,2]
[394350284,1763480724746,-520.5057606,0.00023429,2]
[394350285,1763480724788,-1050.91003957,0.00023429,2]
[394350286,1763480724836,-1050.91003957,0.00023429,2]
[394350287,1763480724874,-1050.91003957,0.00023429,2]
[394350288,1763480724912,-1050.91003957,0.00023429,2]
[394350289,1763480725028,-520.5057606,0.00022962,10]
[394350290,1763480725043,-519.04319405,0.00022962,10]
[394350291,1763480725052,-32.67496819,0.00023429,2]
[394350293,1763480801121,-222.41299147,0.00022898,10]
[394350298,1763480993786,206.58567306,0.00039732,20]
[394350347,1763481032345,-328.11432557,0.0002197,10]
[394350376,1763481038719,-446.94503474,0.0002197,10]
[394350540,1763481040455,-262.0624995,0.0002197,10]
[394350542,1763481040467,-374.08989249,0.0002197,10]
[394350578,1763481040766,-3e-08,0.0002197,10]
[394350580,1763481040777,-3588.78824767,0.0002197,10]
[394350582,1763481040786,-1200.0,0.00022191,2]
[394350584,1763481040796,-5000.0,0.00022192,10]
[394350586,1763481040806,-300.0,0.00022415,2]
[394350588,1763481040818,-650.8406182,0.00022416,7]
[394350590,1763481040827,-1200.0,0.00023128,2]
[394350592,1763481040837,-803.52,0.00023418,10]
[394350594,1763481040845,-500.0,0.00023419,2]
[394350596,1763481040856,-500.0,0.00023419,2]
[394350599,1763481040866,-797.03586607,0.00023419,2]
[394350601,1763481040875,-325.24113614,0.00023419,2]
[394350602,1763481040885,-350.0,0.00023419,2]
[394350605,1763481040897,-797.03586607,0.00023419,2]
[394350607,1763481040906,-797.03586607,0.00023419,2]
[394350608,1763481040915,-688.69239978,0.00023419,2]
[394351124,1763481046800,-186.46191549,0.00023329,2]
[394351127,1763481046813,-108.34346629,0.00023419,2]
[394351130,1763481046823,-797.03586607,0.00023419,2]
[394351132,1763481046832,-797.03586607,0.00023419,2]
[394351134,1763481046841,-797.03586607,0.00023419,2]
[394351136,1763481046850,-797.03586607,0.00023419,2]
[394351138,1763481046859,-643.55115394,0.00023419,2]
[394351140,1763481046870,-153.48471213,0.00023419,2]
[394351143,1763481046880,-797.03586607,0.00023419,2]
[394351145,1763481046892,-797.03586607,0.00023419,2]
[394351146,1763481046902,-797.03586607,0.00023419,2]
[394351148,1763481046911,-717.0476544,0.00023419,2]
[394352326,1763481084038,450.0,0.00032876,120]
[394352327,1763481130148,274.83589255,0.00015776,2]
[394352329,1763481162178,274.94881027,0.00015776,2]
[394352330,1763481187331,-4621.30658115,0.0002304,2]
[394352331,1763481187392,-482.44802743,0.000231,2]
[394352332,1763481187578,-317.55197257,0.000231,2]
[394352333,1763481187609,-4364.90605486,0.0002314,10]
[394352334,1763481187648,-635.09394514,0.0002314,10]
[394352335,1763481187811,-2914.46937237,0.00023318,2]
[394352336,1763481187842,-150.0,0.00023374,2]
[394352337,1763481187881,-300.0,0.00023407,2]
[394352338,1763481187911,-1200.0,0.00023408,2]
[394352339,1763481187944,-123.26125526,0.0002341,10]
[394352340,1763481188040,-624.54874474,0.0002341,10]
[394352341,1763481188072,-500.0,0.00023418,2]
[394352342,1763481188104,-500.0,0.00023418,2]
[394352343,1763481188138,-500.0,0.00023418,2]
[394352344,1763481188174,-500.0,0.00023418,2]
[394352345,1763481188211,-500.0,0.00023418,2]
[394352346,1763481188245,-500.0,0.00023418,2]
[394352347,1763481188379,-500.0,0.00023418,2]
[394352348,1763481188416,-500.0,0.00023418,2]
[394352349,1763481188450,-250.91251052,0.00023418,2]
[394352350,1763481188682,-249.08748948,0.00023418,2]
[394352351,1763481188691,-124.54874474,0.00023418,2]
[394352352,1763481188708,-375.45125526,0.00023418,2]
[394352353,1763481188717,-124.54874474,0.00023418,2]
[394352354,1763481190176,-375.45125526,0.00023418,2]
[394352355,1763481190207,-500.0,0.00023418,2]
[394352356,1763481190242,-500.0,0.00023418,2]